fUSD/lending_fUSD_20251119
["ID","MTS","AMOUNT","RATE_DAILY","PERIOD"]
[394380349,1763512238979,-1175.088563,0.00039999,31]
[394380350,1763512238989,-1175.088563,0.00039999,31]
[394380351,1763512238998,-1175.088563,0.00039999,31]
[394380352,1763512239007,-1175.088563,0.00039999,31]
[394380353,1763512239016,-1175.088563,0.00039999,31]
[394380354,1763512239027,-1175.088563,0.00039999,31]
[394380355,1763512239037,-1175.088563,0.00039999,31]
[394380356,1763512239047,-1175.088563,0.00039999,31]
[394380357,1763512239056,-1175.088563,0.00039999,31]
[394380358,1763512239066,-1175.088563,0.00039999,31]
[394380359,1763512239076,-1175.088563,0.00039999,31]
[394380360,1763512239089,-1175.088563,0.00039999,31]
[394380361,1763512239099,-1175.088563,0.00039999,31]
[394380362,1763512239109,-1175.088563,0.00039999,31]
[394380363,1763512239119,-1175.088563,0.00039999,31]
[394380364,1763512239128,-1175.088563,0.00039999,31]
[394380365,1763512239137,-1175.088563,0.00039999,31]
[394380366,1763512239147,-1175.088563,0.00039999,31]
[394380367,1763512239157,-1175.088563,0.00039999,31]
[394380368,1763512239167,-1175.088563,0.00039999,31]
[394380369,1763512239177,-1175.088563,0.00039999,31]
[394380370,1763512239187,-1175.088563,0.00039999,31]
[394380371,1763512239196,-1175.088563,0.00039999,31]
[394380372,1763512239206,-1175.088563,0.00039999,31]
[394380373,1763512239217,-1175.088563,0.00039999,31]
[394380374,1763512239226,-1168.90388636,0.00039999,31]
[394380375,1763512239236,-1168.90388636,0.00039999,31]
[394380376,1763512239245,-1168.90388636,0.00039999,31]
[394380377,1763512239255,-1168.90388636,0.00039999,31]
[394380378,1763512239264,-1168.90388636,0.00039999,31]
[394380379,1763512239274,-1168.90388636,0.00039999,31]
[394380380,1763512239284,-1168.90388636,0.00039999,31]
[394380381,1763512239293,-1168.90388636,0.00039999,31]
[394380382,1763512239302,-1168.90388636,0.00039999,31]
[394380383,1763512239311,-1168.90388636,0.00039999,31]
[394380384,1763512239321,-1168.90388636,0.00039999,31]
[394380385,1763512239331,-1168.90388636,0.00039999,31]
[394380386,1763512239341,-1168.90388636,0.00039999,31]
[394380387,1763512239351,-1168.90388636,0.00039999,31]
[394380388,1763512239361,-1168.90388636,0.00039999,31]
[394380389,1763512239372,-1168.90388636,0.00039999,31]
[394380390,1763512239382,-1168.90388636,0.00039999,31]
[394380391,1763512239392,-1168.90388636,0.00039999,31]
[394380392,1763512239401,-1212.19662291,0.00039999,31]
[394380393,1763512239411,-1212.19662291,0.00039999,31]
[394380394,1763512239421,-1212.19662291,0.00039999,31]
[394380395,1763512239432,-8004.41174825,0.00039999,2]
[394380396,1763512239441,-500.0,0.00039999,31]
[394380397,1763512239451,-500.0,0.00039999,31]
[394380398,1763512239463,-500.0,0.00039999,31]
[394380399,1763512239473,-411.41734602,0.00039999,31]
[394380400,1763512239483,-500.0,0.00039999,31]
[394380401,1763512239494,-500.0,0.00039999,31]
[394380402,1763512239505,-500.0,0.00039999,31]
[394380403,1763512239516,-500.0,0.00039999,31]
[394380404,1763512239525,-500.0,0.00039999,31]
[394380405,1763512239535,-500.0,0.00039999,31]
[394380406,1763512239551,-500.0,0.00039999,31]
[394380407,1763512239560,-500.0,0.00039999,31]
[394380408,1763512239570,-500.0,0.00039999,31]
[394380409,1763512239580,-500.0,0.00039999,31]
[394380410,1763512239590,-500.0,0.00039999,31]
[394380411,1763512239600,-500.0,0.00039999,31]
[394380412,1763512239609,-500.0,0.00039999,31]
[394380413,1763512239619,-500.0,0.00039999,31]
[394380414,1763512239628,-500.0,0.00039999,31]
[394380415,1763512239637,-500.0,0.00039999,31]
[394380416,1763512239646,-500.0,0.00039999,31]
[394380417,1763512239656,-500.0,0.00039999,31]
[394380418,1763512239666,-500.0,0.00039999,31]
[394380419,1763512239675,-500.0,0.00039999,31]
[394380420,1763512239685,-500.0,0.00039999,31]
[394380421,1763512239694,-500.0,0.00039999,31]
[394380422,1763512239703,-500.0,0.00039999,31]
[394380423,1763512239713,-500.0,0.00039999,31]
[394380424,1763512239723,-500.0,0.00039999,31]
[394380425,1763512239732,-500.0,0.00039999,31]
[394380426,1763512239742,-500.0,0.00039999,31]
[394380427,1763512239751,-500.0,0.00039999,31]
[394380428,1763512239761,-500.0,0.00039999,31]
[394380429,1763512239771,-500.0,0.00039999,31]
[394380430,1763512239781,-500.0,0.00039999,31]
[394380431,1763512239791,-500.0,0.00039999,31]
[394380432,1763512239801,-500.0,0.00039999,31]
[394380433,1763512239810,-500.0,0.00039999,31]
[394380434,1763512239819,-500.0,0.00039999,31]
[394380435,1763512239828,-500.0,0.00039999,31]
[394380436,1763512239838,-500.0,0.00039999,31]
[394380437,1763512239847,-241.14182774,0.00039999,31]
[394380438,1763512239856,-500.0,0.00039999,31]
[394380439,1763512239866,-500.0,0.00039999,31]
[394380440,1763512239875,-710.17500403,0.00039999,31]
[394380441,1763512239885,-710.17500403,0.00039999,31]
[394380442,1763512239894,-710.17500403,0.00039999,31]
[394380443,1763512239903,-710.17500403,0.00039999,31]
[394380444,1763512239913,-710.17500403,0.00039999,31]
[394380445,1763512239922,-710.17500403,0.00039999,31]
[394380446,1763512239931,-710.17500403,0.00039999,31]
[394380447,1763512239941,-710.17500403,0.00039999,31]
[394380448,1763512239953,-710.17500403,0.00039999,31]
[394380450,1763512239964,-710.17500403,0.00039999,31]
[394380452,1763512239973,-710.17500403,0.00039999,31]
[394380453,1763512239982,-710.17500403,0.00039999,31]
[394380454,1763512239991,-710.17500403,0.00039999,31]
[394380455,1763512240000,-710.17500403,0.00039999,31]
[394380456,1763512240010,-710.17500403,0.00039999,31]
[394380457,1763512240019,-710.17500403,0.00039999,31]
[394380458,1763512240029,-710.17500403,0.00039999,31]
[394380459,1763512240038,-710.17500403,0.00039999,31]
[394380460,1763512240047,-710.17500403,0.00039999,31]
[394380461,1763512240056,-710.17500403,0.00039999,31]
[394380462,1763512240065,-710.17500403,0.00039999,31]
[394380463,1763512240074,-710.17500403,0.00039999,31]
[394380464,1763512240083,-710.17500403,0.00039999,31]
[394380465,1763512240093,-710.17500403,0.00039999,31]
[394380466,1763512240103,-710.17500403,0.00039999,31]
[394380467,1763512240112,-710.17500403,0.00039999,31]
[394380468,1763512240121,-710.17500403,0.00039999,31]
[394380469,1763512240130,-710.17500403,0.00039999,31]
[394380470,1763512240139,-710.17500403,0.00039999,31]
[394380471,1763512240155,-710.17500403,0.00039999,31]
[394380472,1763512240164,-710.17500403,0.00039999,31]
[394380473,1763512240173,-710.17500403,0.00039999,31]
[394380474,1763512240183,-710.17500403,0.00039999,31]
[394380475,1763512240192,-710.17500404,0.00039999,31]
[394380476,1763512240201,-710.17500404,0.00039999,31]
[394380477,1763512240210,-710.17500404,0.00039999,31]
[394380478,1763512240220,-710.17500404,0.00039999,31]
[394380479,1763512240229,-710.17500404,0.00039999,31]
[394380480,1763512240240,-710.17500404,0.00039999,31]
[394380481,1763512240250,-710.17500404,0.00039999,31]
[394380482,1763512240259,-710.17500404,0.00039999,31]
[394380483,1763512240268,-710.17500404,0.00039999,31]
[394380484,1763512240277,-223.64670752,0.00039999,31]
[394380485,1763512240286,-500.0,0.00039999,31]
[394380486,1763512240295,-287.18810403,0.00039999,31]
[394380487,1763512240304,-500.0,0.00039999,31]
[394380488,1763512240314,-201.0,0.0004,120]
[394380489,1763512240324,-176.0,0.0004,30]
[394380490,1763512240333,-1000.0,0.0004,2]
[394380491,1763512240345,-166.0,0.0004,2]
[394380492,1763512240354,-2299.99999801,0.0004,2]
[394380493,1763512240371,-1004.26378447,0.0004,120]
[394380494,1763512240380,-2564.0,0.00040051,2]
[394380495,1763512240389,-500.0,0.00040052,30]
[394380496,1763512240399,-8484.92682135,0.00040065,15]
[394380497,1763512240408,-9457.54231293,0.00040065,15]
[394380498,1763512240418,-610.0,0.00040071,2]
[394380499,1763512240427,-1000.0,0.0004013,7]
[394380500,1763512240437,-159.27600059,0.00040137,30]
[394380501,1763512240447,-802.3781414,0.00040156,30]
[394380502,1763512240457,-1000.0,0.00040157,7]
[394380503,1763512240469,-532.97575953,0.00040177,2]
[394380504,1763512240479,-540.6888664,0.00040181,30]
[394380505,1763512240488,-5888.0,0.00040188,2]
[394380506,1763512240498,-305.0,0.00040198,120]
[394380507,1763512240507,-1000.0,0.00040213,7]
[394380508,1763512240517,-500.0,0.00040227,30]
[394380509,1763512240527,-8484.92682135,0.00040269,15]
[394380510,1763512240536,-9457.54231293,0.00040269,15]
[394380511,1763512240545,-304.0,0.00040301,120]
[394380512,1763512240555,-304.0,0.00040314,2]
[394380513,1763512240564,-1000.0,0.0004035,7]
[394380514,1763512240574,-1000.0,0.00040353,7]
[394380515,1763512240584,-500.0,0.00040364,30]
[394380516,1763512240595,-500.0,0.00040407,30]
[394380517,1763512240605,-206.64164394,0.00040411,7]
[394380518,1763512240614,-500.0,0.00040457,30]
[394380519,1763512240623,-1000.0,0.00040463,7]
[394380520,1763512240633,-1000.0,0.00040465,7]
[394380521,1763512240642,-8484.92682135,0.00040474,15]
[394380522,1763512240652,-9457.54231293,0.00040474,15]
[394380523,1763512240661,-1000.0,0.00040479,7]
[394380524,1763512240670,-532.97575953,0.00040482,2]
[394380525,1763512240680,-1000.0,0.00040489,7]
[394380526,1763512240689,-2002.57,0.000405,2]
[394380527,1763512240699,-2000.0,0.000405,2]
[394380528,1763512240708,-2000.0,0.000405,2]
[394380529,1763512240717,-2000.0,0.000405,2]
[394380530,1763512240727,-2019.95,0.000405,2]
[394380531,1763512240736,-500.0,0.00040529,30]
[394380532,1763512240746,-300.0,0.00040538,2]
[394380533,1763512240755,-2392.8760008,0.00040542,2]
[394380534,1763512240764,-1000.0,0.00040555,7]
[394380535,1763512240774,-1363.0,0.00040558,120]
[394380536,1763512240783,-1000.0,0.00040564,7]
[394380537,1763512240792,-300.0,0.00040569,2]
[394380538,1763512240802,-159.27600059,0.00040575,30]
[394380539,1763512240812,-1000.0,0.00040585,7]
[394380540,1763512240822,-1000.0,0.00040585,7]
[394380541,1763512240831,-1000.0,0.00040629,7]
[394380542,1763512240842,-395.0,0.00040652,7]
[394380543,1763512240851,-300.0,0.00040652,2]
[394380544,1763512240860,-500.0,0.00040663,30]
[394380545,1763512240870,-300.0,0.00040668,2]
[394380546,1763512240879,-500.0,0.00040674,30]
[394380547,1763512240888,-8484.92682135,0.00040678,15]
[394380548,1763512240898,-9457.54231293,0.00040678,15]
[394380549,1763512240908,-300.0,0.00040678,2]
[394380550,1763512240917,-300.0,0.00040688,2]
[394380551,1763512240926,-300.0,0.00040698,2]
[394380552,1763512240936,-500.0,0.000407,30]
[394380553,1763512240946,-500.0,0.00040719,30]
[394380554,1763512240955,-300.0,0.00040726,2]
[394380555,1763512240965,-1000.0,0.00040726,7]
[394380556,1763512240974,-300.0,0.00040752,2]
[394380557,1763512240983,-300.0,0.00040766,2]
[394380558,1763512240994,-300.0,0.00040779,2]
[394380559,1763512241005,-300.0,0.0004078,2]
[394380560,1763512241015,-300.0,0.0004078,2]
[394380561,1763512241025,-300.0,0.00040782,2]
[394380562,1763512241034,-300.0,0.00040785,2]
[394380563,1763512241043,-532.97575953,0.00040786,2]
[394380564,1763512241052,-300.0,0.0004079,2]
[394380565,1763512241062,-1000.0,0.00040795,7]
[394380566,1763512241186,-300.0,0.00040795,2]
[394380567,1763512241196,-2494.19941866,0.00040799,13]
[394380568,1763512241206,-2494.19941852,0.00040799,13]
[394380569,1763512241215,-2494.19941852,0.00040799,13]
[394380570,1763512241224,-2494.19941852,0.00040799,13]
[394380571,1763512241233,-2494.19941852,0.00040799,13]
[394380572,1763512241242,-2494.19941852,0.00040799,13]
[394380573,1763512241252,-304.0,0.00040802,2]
[394380574,1763512241262,-500.0,0.00040811,30]
[394380575,1763512241271,-300.0,0.00040816,2]
[394380576,1763512241281,-300.0,0.00040831,2]
[394380577,1763512241291,-300.0,0.00040843,2]
[394380578,1763512241301,-300.0,0.00040845,2]
[394380579,1763512241311,-300.0,0.00040848,2]
[394380580,1763512241320,-700.6,0.00040849,2]
[394380581,1763512241329,-478.46,0.00040849,2]
[394380582,1763512241339,-700.6,0.00040849,2]
[394380583,1763512241348,-700.6,0.00040849,2]
[394380584,1763512241358,-478.46,0.00040849,2]
[394380585,1763512241368,-700.6,0.00040849,2]
[394380586,1763512241378,-700.6,0.00040849,2]
[394380587,1763512241387,-478.46,0.00040849,2]
[394380588,1763512241397,-478.46,0.00040849,2]
[394380589,1763512241406,-700.6,0.00040849,2]
[394380590,1763512241416,-700.6,0.00040849,2]
[394380591,1763512241426,-478.46,0.00040849,2]
[394380592,1763512241436,-478.46,0.00040849,2]
[394380593,1763512241445,-700.6,0.00040849,2]
[394380594,1763512241455,-192.47,0.00040857,14]
[394380595,1763512241469,-300.0,0.00040864,2]
[394380596,1763512241479,-1000.0,0.00040867,7]
[394380597,1763512241489,-300.0,0.00040878,2]
[394380598,1763512241498,-8484.92682135,0.00040882,15]
[394380599,1763512241513,-9457.54231293,0.00040882,15]
[394380600,1763512241525,-300.0,0.0004089,2]
[394380601,1763512241535,-300.0,0.00040901,2]
[394380602,1763512241546,-192.47,0.00040903,14]
[394380603,1763512241556,-300.0,0.00040917,2]
[394380604,1763512241565,-300.0,0.0004092,2]
[394380605,1763512241575,-300.0,0.00040929,2]
[394380606,1763512241585,-300.0,0.00040942,2]
[394380607,1763512241595,-300.0,0.00040942,2]
[394380608,1763512241605,-300.0,0.00040946,2]
[394380609,1763512241615,-192.47,0.00040949,14]
[394380610,1763512241625,-1000.0,0.00040958,7]
[394380611,1763512241638,-150.0,0.00040973,5]
[394380612,1763512241647,-2564.0,0.00040981,120]
[394380613,1763512241656,-550.38,0.00040986,2]
[394380614,1763512241666,-177.39,0.00040986,2]
[394380615,1763512241676,-150.0,0.00040986,2]
[394380616,1763512241685,-150.0,0.00040986,2]
[394380617,1763512241694,-170.88,0.00040986,2]
[394380618,1763512241704,-150.0,0.00040986,2]
[394380619,1763512241714,-150.0,0.00040986,2]
[394380620,1763512241723,-177.39,0.00040986,2]
[394380621,1763512241733,-169.49,0.00040986,2]
[394380622,1763512241744,-150.0,0.00040986,2]
[394380623,1763512241754,-150.0,0.00040986,2]
[394380624,1763512241764,-177.39,0.00040986,2]
[394380625,1763512241773,-416.87,0.00040986,2]
[394380626,1763512241782,-1209.53,0.00040986,2]
[394380627,1763512241792,-1100.76,0.00040986,2]
[394380628,1763512241802,-150.0,0.00040986,2]
[394380629,1763512241811,-169.49,0.00040986,2]
[394380630,1763512241821,-169.49,0.00040986,2]
[394380631,1763512241831,-177.39,0.00040986,2]
[394380632,1763512241841,-1209.53,0.00040986,2]
[394380633,1763512241850,-150.0,0.00040986,2]
[394380634,1763512241860,-416.87,0.00040986,2]
[394380635,1763512241869,-1209.53,0.00040986,2]
[394380636,1763512241878,-150.0,0.00040986,2]
[394380637,1763512241887,-416.87,0.00040986,2]
[394380638,1763512241896,-169.49,0.00040986,2]
[394380639,1763512241906,-177.39,0.00040986,2]
[394380640,1763512241915,-150.0,0.00040986,2]
[394380641,1763512241925,-1209.53,0.00040986,2]
[394380642,1763512241934,-169.49,0.00040986,2]
[394380643,1763512241944,-150.0,0.00040986,2]
[394380644,1763512241954,-339.11,0.00040986,2]
[394380645,1763512241963,-177.39,0.00040986,2]
[394380646,1763512241972,-1209.53,0.00040986,2]
[394380647,1763512241981,-177.39,0.00040986,2]
[394380648,1763512241991,-150.0,0.00040986,2]
[394380649,1763512242000,-150.0,0.00040986,2]
[394380650,1763512242009,-169.49,0.00040986,2]
[394380651,1763512242018,-500.0,0.00040988,30]
[394380652,1763512242028,-300.0,0.00040992,2]
[394380653,1763512242037,-10000.0,0.00040995,2]
[394380654,1763512242046,-7635.01645803,0.00041,7]
[394380655,1763512242055,-176.0,0.00041,30]
[394380656,1763512242065,-166.0,0.00041,30]
[394380657,1763512242074,-181.0,0.00041,2]
[394380658,1763512242083,-12699.58262693,0.00041,7]
[394380659,1763512242092,-300.0,0.00041008,2]
[394380660,1763512242101,-159.27600059,0.00041014,30]
[394380661,1763512242111,-300.0,0.00041017,2]
[394380662,1763512242121,-300.0,0.00041023,2]
[394380663,1763512242131,-300.0,0.0004103,2]
[394380664,1763512242141,-200.0,0.00041042,2]
[394380665,1763512242150,-200.0,0.00041042,2]
[394380666,1763512242160,-200.0,0.00041042,2]
[394380667,1763512242169,-200.0,0.00041042,2]
[394380668,1763512242178,-200.0,0.00041042,2]
[394380669,1763512242187,-200.0,0.00041042,2]
[394380670,1763512242196,-200.0,0.00041042,2]
[394380671,1763512242205,-200.0,0.00041042,2]
[394380672,1763512242215,-200.0,0.00041042,2]
[394380673,1763512242224,-200.0,0.00041042,2]
[394380674,1763512242234,-200.0,0.00041042,2]
[394380675,1763512242244,-200.0,0.00041042,2]
[394380676,1763512242253,-200.0,0.00041042,2]
[394380677,1763512242263,-200.0,0.00041042,2]
[394380678,1763512242273,-200.0,0.00041042,2]
[394380679,1763512242282,-200.0,0.00041042,2]
[394380680,1763512242291,-200.0,0.00041042,2]
[394380681,1763512242300,-200.0,0.00041042,2]
[394380682,1763512242311,-200.0,0.00041042,2]
[394380683,1763512242320,-200.0,0.00041042,2]
[394380684,1763512242329,-200.0,0.00041042,2]
[394380685,1763512242339,-200.0,0.00041042,2]
[394380686,1763512242348,-200.0,0.00041042,2]
[394380687,1763512242358,-200.0,0.00041042,2]
[394380688,1763512242368,-200.0,0.00041042,2]
[394380689,1763512242378,-200.0,0.00041042,2]
[394380690,1763512242388,-200.0,0.00041042,2]
[394380691,1763512242397,-200.0,0.00041042,2]
[394380692,1763512242407,-200.0,0.00041042,2]
[394380693,1763512242416,-200.0,0.00041042,2]
[394380694,1763512242427,-200.0,0.00041042,2]
[394380695,1763512242436,-200.0,0.00041042,2]
[394380696,1763512242446,-200.0,0.00041042,2]
[394380697,1763512242456,-200.0,0.00041042,2]
[394380698,1763512242470,-200.0,0.00041042,2]
[394380699,1763512242480,-311.0,0.00041042,2]
[394380700,1763512242490,-300.0,0.0004105,2]
[394380701,1763512242500,-900.0,0.00041059,2]
[394380702,1763512242510,-300.0,0.00041062,2]
[394380703,1763512242519,-300.0,0.00041072,2]
[394380704,1763512242529,-500.0,0.00041073,2]
[394380705,1763512242538,-300.0,0.00041073,2]
[394380706,1763512242548,-8484.92682135,0.00041086,15]
[394380707,1763512242557,-9457.54231293,0.00041086,15]
[394380708,1763512242568,-300.0,0.00041089,2]
[394380709,1763512242577,-300.0,0.0004109,2]
[394380710,1763512242588,-532.97575953,0.0004109,2]
[394380711,1763512242598,-1003.25121953,0.00041092,7]
[394380712,1763512242611,-1000.0,0.00041095,2]
[394380713,1763512242622,-500.0,0.00041095,2]
[394380714,1763512242635,-774.49,0.00041095,2]
[394380715,1763512242648,-4798.36,0.00041095,2]
[394380716,1763512242660,-500.0,0.00041095,2]
[394380717,1763512242670,-500.0,0.00041095,2]
[394380718,1763512242681,-500.0,0.00041095,2]
[394380719,1763512242692,-300.0,0.00041095,2]
[394380720,1763512242703,-300.0,0.00041095,2]
[394380721,1763512242714,-500.0,0.00041095,2]
[394380722,1763512242725,-300.0,0.00041096,2]
[394380723,1763512242737,-443.0,0.000411,2]
[394380724,1763512242748,-1129.0,0.000411,2]
[394380725,1763512242760,-593.0,0.000411,2]
[394380726,1763512242772,-1000.0,0.00041108,14]
[394380727,1763512242784,-300.0,0.00041138,2]
[394380728,1763512242796,-300.0,0.00041144,2]
[394380729,1763512242807,-1000.0,0.0004115,14]
[394380730,1763512242818,-218.8890813,0.00041167,2]
[394380731,1763512242829,-300.0,0.00041175,2]
[394380732,1763512242840,-300.0,0.00041186,2]
[394380734,1763512242853,-150.0,0.00041193,30]
[394380737,1763512242865,-300.0,0.00041194,2]
[394380738,1763512242877,-300.0,0.00041194,2]
[394380739,1763512242889,-300.0,0.00041198,2]
[394380740,1763512242900,-300.0,0.00041206,2]
[394380741,1763512242913,-300.0,0.00041224,2]
[394380742,1763512242926,-463.61829592,0.0004123,2]
[394380744,1763512242939,-300.0,0.00041237,2]
[394380745,1763512242951,-300.0,0.00041237,2]
[394380746,1763512242964,-300.0,0.00041245,2]
[394380747,1763512242977,-1000.0,0.0004125,14]
[394380748,1763512242988,-300.0,0.00041264,2]
[394380749,1763512243002,-1000.0,0.00041269,14]
[394380750,1763512243013,-395.0,0.00041283,2]
[394380751,1763512243026,-9281.75277282,0.00041285,90]
[394380752,1763512243038,-300.0,0.00041288,2]
[394380753,1763512243051,-8484.92682135,0.00041291,15]
[394380755,1763512243062,-9457.54231293,0.00041291,15]
[394380756,1763512243074,-1000.0,0.00041294,14]
[394380758,1763512243085,-300.0,0.00041297,2]
[394380759,1763512243097,-300.0,0.00041319,2]
[394380760,1763512243109,-25000.0,0.0004132,14]
[394380761,1763512243122,-454.29303417,0.0004132,2]
[394380762,1763512243134,-1000.0,0.00041328,14]
[394380763,1763512243146,-25000.0,0.00041329,14]
[394380764,1763512243157,-300.0,0.00041329,2]
[394380765,1763512243168,-300.0,0.00041333,105]
[394380766,1763512243179,-25000.0,0.00041338,14]
[394380767,1763512243189,-25000.0,0.00041346,14]
[394380768,1763512243199,-300.0,0.00041347,2]
[394380769,1763512243210,-500.0,0.0004135,30]
[394380770,1763512243221,-500.0,0.00041352,30]
[394380771,1763512243234,-300.0,0.00041352,2]
[394380772,1763512243248,-25000.0,0.00041355,14]
[394380773,1763512243260,-556.84,0.00041358,7]
[394380774,1763512243269,-500.0,0.00041358,120]
[394380775,1763512243281,-150.0,0.00041358,14]
[394380776,1763512243291,-500.0,0.00041358,2]
[394380777,1763512243301,-900.0,0.00041359,2]
[394380778,1763512243312,-300.0,0.00041359,2]
[394380779,1763512243324,-300.0,0.00041363,2]
[394380780,1763512243336,-300.0,0.00041364,2]
[394380781,1763512243348,-25000.0,0.00041364,14]
[394380782,1763512243359,-300.0,0.00041368,2]
[394380783,1763512243370,-1000.0,0.00041369,2]
[394380784,1763512243381,-500.0,0.00041369,2]
[394380785,1763512243392,-774.49,0.00041369,2]
[394380786,1763512243402,-500.0,0.00041369,2]
[394380787,1763512243414,-4798.36,0.00041369,2]
[394380788,1763512243426,-500.0,0.00041369,2]
[394380789,1763512243438,-500.0,0.00041369,2]
[394380790,1763512243450,-300.0,0.00041369,2]
[394380791,1763512243463,-300.0,0.00041369,2]
[394380792,1763512243477,-375.07952846,0.00041369,2]
[394380793,1763512243489,-300.0,0.00041379,2]
[394380794,1763512243500,-1033.56918,0.0004138,9]
[394380795,1763512243513,-150.0,0.00041381,2]
[394380796,1763512243526,-150.0,0.00041381,2]
[394380797,1763512243538,-192.57698377,0.00041381,2]
[394380798,1763512243550,-218.8890814,0.00041392,2]
[394380799,1763512243562,-532.97575953,0.00041395,3]
[394380800,1763512243576,-395.0,0.0004141,7]
[394380801,1763512243588,-300.0,0.00041418,2]
[394380802,1763512243604,-1000.0,0.00041419,14]
[394380803,1763512243615,-500.0,0.0004142,30]
[394380804,1763512243628,-300.0,0.00041431,2]
[394380805,1763512243639,-300.0,0.0004144,2]
[394380806,1763512243649,-300.0,0.00041441,2]
[394380807,1763512243659,-1000.0,0.00041441,14]
[394380808,1763512243671,-150.0,0.00041443,14]
[394380809,1763512243682,-300.0,0.00041445,2]
[394380810,1763512243692,-300.0,0.00041449,2]
[394380811,1763512243702,-1414.63558448,0.00041453,2]
[394380812,1763512243713,-300.0,0.00041455,2]
[394380813,1763512243723,-900.0,0.00041459,2]
[394380814,1763512243734,-1000.0,0.0004146,14]
[394380815,1763512243744,-300.0,0.00041477,2]
[394380816,1763512243755,-300.0,0.0004148,2]
[394380817,1763512243766,-1000.0,0.00041484,30]
[394380818,1763512243777,-1000.0,0.00041484,30]
[394380819,1763512243787,-1000.0,0.00041484,30]
[394380820,1763512243797,-1000.0,0.00041484,30]
[394380821,1763512243808,-1000.0,0.00041484,30]
[394380822,1763512243819,-556.84,0.00041485,7]
[394380823,1763512243829,-500.0,0.00041485,120]
[394380824,1763512243841,-1000.0,0.00041485,30]
[394380825,1763512243851,-1000.0,0.00041485,30]
[394380826,1763512243862,-1000.0,0.00041485,30]
[394380828,1763512243873,-1000.0,0.00041485,30]
[394380830,1763512243884,-1000.0,0.00041485,30]
[394380832,1763512243896,-500.0,0.00041485,2]
[394380834,1763512243906,-1000.0,0.00041486,14]
[394380836,1763512243917,-300.0,0.00041486,2]
[394380837,1763512243928,-300.0,0.00041493,2]
[394380838,1763512243938,-8484.92682135,0.00041495,15]
[394380839,1763512243948,-9457.54231293,0.00041495,15]
[394380840,1763512243959,-556.84,0.00041495,7]
[394380841,1763512243969,-500.0,0.00041495,2]
[394380842,1763512243979,-395.0,0.00041499,2]
[394380843,1763512243989,-66936.80297287,0.000415,2]
[394380844,1763512244000,-174.65144099,0.000415,120]
[394380845,1763512244011,-395.0,0.00041513,120]
[394380846,1763512244022,-250.0,0.00041521,10]
[394380847,1763512244033,-300.0,0.00041543,2]
[394380848,1763512244044,-900.0,0.00041558,2]
[394380849,1763512244055,-300.0,0.0004157,2]
[394380850,1763512244065,-1000.0,0.00041578,14]
[394380851,1763512244076,-300.0,0.0004158,2]
[394380852,1763512244087,-300.0,0.00041584,2]
[394380853,1763512244100,-300.0,0.00041585,2]
[394380854,1763512244110,-201.42723711,0.00041589,30]
[394380855,1763512244121,-150.0,0.00041589,30]
[394380856,1763512244132,-150.0,0.00041589,30]
[394380857,1763512244144,-150.0,0.00041589,30]
[394380858,1763512244155,-150.0,0.00041589,30]
[394380859,1763512244165,-150.0,0.00041589,30]
[394380860,1763512244174,-150.59614754,0.00041589,30]
[394380861,1763512244183,-150.0,0.00041589,30]